[Event "Titled Tuesday Blitz February 15 Early 2022"]
[White "Mikhailov, Viacheslav"]
[Black "Balint, Vilmos"]
[WhiteFideId "4187369"]
[BlackFideId "718050"]
[WhiteElo "2381"]
[BlackElo "2059"]
[Result "1/2-1/2"]
[Round "04"]
[TimeControl "180+1"]
[Date "2022.02.15"]
[WhiteClock "0:00:06"]
[BlackClock "0:00:43"]

1. Nf3 {[%clk 0:02:45]}  d5 {[%clk 0:02:59]} 2. g3 {[%clk 0:02:45]}  Bg4 {[%clk 0:02:59]} 3. Bg2 {[%clk 0:02:45]}  c6 {[%clk 0:03:00]} 4. O-O {[%clk 0:02:44]}  Nd7 {[%clk 0:03:00]} 5. d4 {[%clk 0:02:44]}  Ngf6 {[%clk 0:03:00]} 6. c4 {[%clk 0:02:42]}  e6 {[%clk 0:03:00]} 7. Nc3 {[%clk 0:02:36]}  Be7 {[%clk 0:02:56]} 8. Qb3 {[%clk 0:02:36]}  Qb6 {[%clk 0:02:56]} 9. c5 {[%clk 0:02:36]}  Qxb3 {[%clk 0:02:55]} 10. axb3 {[%clk 0:02:37]}  a6 {[%clk 0:02:55]} 11. b4 {[%clk 0:02:38]}  Rc8 {[%clk 0:02:53]} 12. Bf4 {[%clk 0:02:38]}  O-O {[%clk 0:02:45]} 13. h3 {[%clk 0:02:38]}  Bf5 {[%clk 0:02:43]} 14. g4 {[%clk 0:02:38]}  Bg6 {[%clk 0:02:44]} 15. Nd2 {[%clk 0:02:38]}  h5 {[%clk 0:02:40]} 16. g5 {[%clk 0:02:37]}  Nh7 {[%clk 0:02:40]} 17. h4 {[%clk 0:02:35]}  f6 {[%clk 0:02:40]} 18. b5 {[%clk 0:02:25]}  cxb5 {[%clk 0:02:25]} 19. Nxd5 {[%clk 0:02:25]}  exd5 {[%clk 0:02:25]} 20. Bxd5+ {[%clk 0:02:25]}  Kh8 {[%clk 0:02:25]} 21. Bxb7 {[%clk 0:02:26]}  Rce8 {[%clk 0:02:18]} 22. Bc6 {[%clk 0:02:15]}  fxg5 {[%clk 0:02:12]} 23. Bxd7 {[%clk 0:02:14]}  gxf4 {[%clk 0:02:11]} 24. Bxe8 {[%clk 0:02:14]}  Rxe8 {[%clk 0:02:10]} 25. Rxa6 {[%clk 0:02:14]}  Bf5 {[%clk 0:02:05]} 26. Nf3 {[%clk 0:02:12]}  Nf6 {[%clk 0:02:01]} 27. b4 {[%clk 0:02:10]}  Nd5 {[%clk 0:02:00]} 28. Rd1 {[%clk 0:01:55]}  Nxb4 {[%clk 0:01:59]} 29. Rb6 {[%clk 0:01:55]}  Bd7 {[%clk 0:01:52]} 30. Ne5 {[%clk 0:01:53]}  Bg4 {[%clk 0:01:41]} 31. f3 {[%clk 0:01:51]}  Bf5 {[%clk 0:01:42]} 32. Rxb5 {[%clk 0:01:50]}  Nd5 {[%clk 0:01:41]} 33. c6 {[%clk 0:01:49]}  Nc3 {[%clk 0:01:39]} 34. Nf7+ {[%clk 0:01:43]}  Kg8 {[%clk 0:01:38]} 35. Rxf5 {[%clk 0:01:44]}  Nxd1 {[%clk 0:01:36]} 36. Ng5 {[%clk 0:01:39]}  Bd6 {[%clk 0:01:32]} 37. Rd5 {[%clk 0:01:37]}  Bc7 {[%clk 0:01:28]} 38. Rd7 {[%clk 0:01:37]}  Bb6 {[%clk 0:01:26]} 39. c7 {[%clk 0:01:33]}  Rc8 {[%clk 0:01:17]} 40. Ne6 {[%clk 0:01:33]}  Nc3 {[%clk 0:01:13]} 41. Kf1 {[%clk 0:01:30]}  Nb5 {[%clk 0:01:12]} 42. Rxg7+ {[%clk 0:00:28]}  Kh8 {[%clk 0:01:12]} 43. Rg5 {[%clk 0:00:28]}  Nxc7 {[%clk 0:01:12]} 44. Nxf4 {[%clk 0:00:28]}  Bxd4 {[%clk 0:01:08]} 45. Rxh5+ {[%clk 0:00:29]}  Kg7 {[%clk 0:01:08]} 46. Rg5+ {[%clk 0:00:29]}  Kf6 {[%clk 0:01:07]} 47. e4 {[%clk 0:00:29]}  Ne6 {[%clk 0:01:02]} 48. Rg6+ {[%clk 0:00:28]}  Ke5 {[%clk 0:01:00]} 49. Nxe6 {[%clk 0:00:28]}  Rc1+ {[%clk 0:00:59]} 50. Ke2 {[%clk 0:00:29]}  Rc2+ {[%clk 0:01:00]} 51. Kd3 {[%clk 0:00:29]}  Rc3+ {[%clk 0:01:00]} 52. Ke2 {[%clk 0:00:29]}  Rc2+ {[%clk 0:01:01]} 53. Kd1 {[%clk 0:00:30]}  Rh2 {[%clk 0:01:01]} 54. h5 {[%clk 0:00:13]}  Rxh5 {[%clk 0:00:59]} 55. Ke2 {[%clk 0:00:13]}  Rh2+ {[%clk 0:00:59]} 56. Kd3 {[%clk 0:00:14]}  Ba7 {[%clk 0:00:56]} 57. f4+ {[%clk 0:00:14]}  Kd6 {[%clk 0:00:56]} 58. Nd4+ {[%clk 0:00:14]}  Ke7 {[%clk 0:00:57]} 59. Nf5+ {[%clk 0:00:14]}  Kf7 {[%clk 0:00:57]} 60. Ra6 {[%clk 0:00:15]}  Bg1 {[%clk 0:00:56]} 61. e5 {[%clk 0:00:14]}  Rf2 {[%clk 0:00:54]} 62. Rf6+ {[%clk 0:00:13]}  Ke8 {[%clk 0:00:54]} 63. Nd6+ {[%clk 0:00:13]}  Ke7 {[%clk 0:00:55]} 64. Ne4 {[%clk 0:00:13]}  Rf3+ {[%clk 0:00:54]} 65. Kc4 {[%clk 0:00:14]}  Bh2 {[%clk 0:00:50]} 66. Rh6 {[%clk 0:00:13]}  Bxf4 {[%clk 0:00:49]} 67. Rh7+ {[%clk 0:00:12]}  Ke6 {[%clk 0:00:49]} 68. Rh5 {[%clk 0:00:09]}  Re3 {[%clk 0:00:43]} 69. Nc5+ {[%clk 0:00:09]}  Ke7 {[%clk 0:00:43]} 70. Rh7+ {[%clk 0:00:09]}  Kf8 {[%clk 0:00:43]} 71. Ne6+ {[%clk 0:00:08]}  Kg8 {[%clk 0:00:44]} 72. Rg7+ {[%clk 0:00:06]}  Kh8 {[%clk 0:00:43]} 73. Nxf4 {[%clk 0:00:05]}  Kxg7 {[%clk 0:00:43]} 74. Kd4 {[%clk 0:00:06]}  Rxe5 {[%clk 0:00:43]} 75. Kxe5 {[%clk 0:00:06]} 1/2-1/2


[Site "https://www.chess.com"]

[Event "Titled Tuesday Blitz February 15 Early 2022"]
[White "Milanovic, Marko"]
[Black "Todorovic, Bojan"]
[WhiteFideId "980129"]
[BlackFideId "917087"]
[WhiteElo "1976"]
[BlackElo "2266"]
[Result "1-0"]
[Round "04"]
[TimeControl "180+1"]
[Date "2022.02.15"]
[WhiteClock "0:00:08"]
[BlackClock "0:00:01"]

1. e4 {[%clk 0:03:00]}  c5 {[%clk 0:02:58]} 2. Nf3 {[%clk 0:03:01]}  e6 {[%clk 0:02:58]} 3. g3 {[%clk 0:02:59]}  a6 {[%clk 0:02:56]} 4. Bg2 {[%clk 0:02:59]}  b5 {[%clk 0:02:56]} 5. O-O {[%clk 0:02:57]}  Bb7 {[%clk 0:02:55]} 6. Re1 {[%clk 0:02:57]}  d6 {[%clk 0:02:54]} 7. c3 {[%clk 0:02:54]}  Nf6 {[%clk 0:02:52]} 8. d3 {[%clk 0:02:54]}  Be7 {[%clk 0:02:48]} 9. Nbd2 {[%clk 0:02:53]}  O-O {[%clk 0:02:44]} 10. d4 {[%clk 0:02:53]}  cxd4 {[%clk 0:02:44]} 11. cxd4 {[%clk 0:02:54]}  Nbd7 {[%clk 0:02:33]} 12. b3 {[%clk 0:02:38]}  Rc8 {[%clk 0:02:08]} 13. Bb2 {[%clk 0:02:38]}  d5 {[%clk 0:02:07]} 14. e5 {[%clk 0:02:35]}  Ne4 {[%clk 0:02:05]} 15. Rc1 {[%clk 0:02:32]}  Rxc1 {[%clk 0:02:00]} 16. Qxc1 {[%clk 0:02:33]}  Qa5 {[%clk 0:01:58]} 17. Nxe4 {[%clk 0:01:16]}  dxe4 {[%clk 0:01:57]} 18. Nd2 {[%clk 0:01:16]}  Bg5 {[%clk 0:01:24]} 19. Re2 {[%clk 0:00:43]}  Rc8 {[%clk 0:01:19]} 20. Qd1 {[%clk 0:00:39]}  Qxa2 {[%clk 0:01:18]} 21. Nxe4 {[%clk 0:00:40]}  Bxe4 {[%clk 0:01:07]} 22. Bxe4 {[%clk 0:00:40]}  Nb6 {[%clk 0:00:44]} 23. Bb1 {[%clk 0:00:19]}  Qa5 {[%clk 0:00:39]} 24. Qd3 {[%clk 0:00:19]}  g6 {[%clk 0:00:36]} 25. Rc2 {[%clk 0:00:17]}  Qe1+ {[%clk 0:00:29]} 26. Kg2 {[%clk 0:00:17]}  Rxc2 {[%clk 0:00:20]} 27. Qxc2 {[%clk 0:00:15]}  Nd5 {[%clk 0:00:20]} 28. Ba3 {[%clk 0:00:14]}  Be7 {[%clk 0:00:15]} 29. Bc1 {[%clk 0:00:07]}  Kg7 {[%clk 0:00:11]} 30. Bd2 {[%clk 0:00:07]}  Nb4 {[%clk 0:00:01]} 31. Bxe1 {[%clk 0:00:07]}  Nxc2 {[%clk 0:00:01]} 32. Bxc2 {[%clk 0:00:08]} 1-0


[Site "https://www.chess.com"]

[Event "Titled Tuesday Blitz February 15 Early 2022"]
[White "Milosevic, Milos"]
[Black "Smith, Shreyas"]
[WhiteFideId "964875"]
[BlackFideId "7400713"]
[WhiteElo "2198"]
[BlackElo "2129"]
[Result "1-0"]
[Round "04"]
[TimeControl "180+1"]
[Date "2022.02.15"]
[WhiteClock "0:01:48"]
[BlackClock "0:00:02"]

1. a4 {[%clk 0:03:00]}  d5 {[%clk 0:02:58]} 2. e3 {[%clk 0:02:59]}  Bf5 {[%clk 0:02:56]} 3. d3 {[%clk 0:03:00]}  e6 {[%clk 0:02:56]} 4. g3 {[%clk 0:02:59]}  Nf6 {[%clk 0:02:57]} 5. Bg2 {[%clk 0:02:59]}  Be7 {[%clk 0:02:57]} 6. Ne2 {[%clk 0:03:00]}  O-O {[%clk 0:02:57]} 7. O-O {[%clk 0:03:01]}  c5 {[%clk 0:02:55]} 8. Nd2 {[%clk 0:03:02]}  Bg6 {[%clk 0:02:54]} 9. b3 {[%clk 0:03:03]}  Nc6 {[%clk 0:02:53]} 10. Bb2 {[%clk 0:03:04]}  Qc7 {[%clk 0:02:47]} 11. f4 {[%clk 0:03:03]}  Bh5 {[%clk 0:02:37]} 12. h3 {[%clk 0:03:01]}  Bxe2 {[%clk 0:02:36]} 13. Qxe2 {[%clk 0:03:00]}  e5 {[%clk 0:02:37]} 14. e4 {[%clk 0:02:49]}  dxe4 {[%clk 0:02:25]} 15. dxe4 {[%clk 0:02:45]}  Nd4 {[%clk 0:02:14]} 16. Bxd4 {[%clk 0:02:40]}  cxd4 {[%clk 0:02:14]} 17. Nc4 {[%clk 0:02:41]}  Nd7 {[%clk 0:02:10]} 18. f5 {[%clk 0:02:35]}  f6 {[%clk 0:02:04]} 19. g4 {[%clk 0:02:34]}  Nc5 {[%clk 0:01:40]} 20. h4 {[%clk 0:02:33]}  d3 {[%clk 0:01:39]} 21. cxd3 {[%clk 0:02:31]}  Nxb3 {[%clk 0:01:33]} 22. Nxe5 {[%clk 0:02:19]}  Nxa1 {[%clk 0:01:04]} 23. Qa2+ {[%clk 0:02:15]}  Kh8 {[%clk 0:01:04]} 24. Nf3 {[%clk 0:02:10]}  Nc2 {[%clk 0:00:54]} 25. g5 {[%clk 0:02:06]}  Ne3 {[%clk 0:00:49]} 26. Rf2 {[%clk 0:02:03]}  Qc1+ {[%clk 0:00:41]} 27. Bf1 {[%clk 0:01:59]}  Rac8 {[%clk 0:00:28]} 28. g6 {[%clk 0:01:56]}  Rc2 {[%clk 0:00:17]} 29. Qe6 {[%clk 0:01:50]}  Rxf2 {[%clk 0:00:08]} 30. Kxf2 {[%clk 0:01:50]}  Bc5 {[%clk 0:00:08]} 31. d4 {[%clk 0:01:50]}  Bxd4 {[%clk 0:00:03]} 32. Nxd4 {[%clk 0:01:50]}  Qd2+ {[%clk 0:00:03]} 33. Ne2 {[%clk 0:01:49]}  Nxf1 {[%clk 0:00:03]} 34. Kxf1 {[%clk 0:01:49]}  Qd1+ {[%clk 0:00:02]} 35. Kf2 {[%clk 0:01:49]}  Qd2 {[%clk 0:00:02]} 36. Qe7 {[%clk 0:01:48]} 1-0


[Site "https://www.chess.com"]

[Event "Titled Tuesday Blitz February 15 Early 2022"]
[White "Moiseenko, Alexander"]
[Black "Maze, Sebastien"]
[WhiteFideId "14102560"]
[BlackFideId "613762"]
[WhiteElo "2577"]
[BlackElo "2462"]
[Result "0-1"]
[Round "04"]
[TimeControl "180+1"]
[Date "2022.02.15"]
[WhiteClock "0:00:04"]
[BlackClock "0:00:24"]

1. d4 {[%clk 0:03:00]}  Nf6 {[%clk 0:02:58]} 2. c4 {[%clk 0:03:00]}  g6 {[%clk 0:02:56]} 3. Nc3 {[%clk 0:03:00]}  Bg7 {[%clk 0:02:56]} 4. e4 {[%clk 0:03:00]}  d6 {[%clk 0:02:56]} 5. Bd3 {[%clk 0:03:00]}  c5 {[%clk 0:02:46]} 6. d5 {[%clk 0:03:00]}  e6 {[%clk 0:02:46]} 7. Nge2 {[%clk 0:02:59]}  exd5 {[%clk 0:02:47]} 8. exd5 {[%clk 0:03:00]}  O-O {[%clk 0:02:45]} 9. Bg5 {[%clk 0:02:59]}  h6 {[%clk 0:02:45]} 10. Bh4 {[%clk 0:02:59]}  Re8 {[%clk 0:02:44]} 11. f4 {[%clk 0:02:58]}  Qb6 {[%clk 0:02:36]} 12. O-O {[%clk 0:02:49]}  Ng4 {[%clk 0:02:35]} 13. Qd2 {[%clk 0:02:44]}  Ne3 {[%clk 0:02:29]} 14. Rfe1 {[%clk 0:02:20]}  Bf5 {[%clk 0:02:28]} 15. Bxf5 {[%clk 0:01:41]}  Nxf5 {[%clk 0:02:27]} 16. Bf2 {[%clk 0:01:41]}  Nd7 {[%clk 0:02:20]} 17. g4 {[%clk 0:01:34]}  Nd4 {[%clk 0:02:18]} 18. Nxd4 {[%clk 0:01:34]}  cxd4 {[%clk 0:02:06]} 19. Nb5 {[%clk 0:01:33]}  Nc5 {[%clk 0:02:05]} 20. Bxd4 {[%clk 0:01:20]}  a6 {[%clk 0:01:57]} 21. Bxg7 {[%clk 0:01:01]}  Kxg7 {[%clk 0:01:55]} 22. Qd4+ {[%clk 0:00:56]}  Kg8 {[%clk 0:01:55]} 23. Na3 {[%clk 0:00:49]}  Qb4 {[%clk 0:01:54]} 24. Nc2 {[%clk 0:00:35]}  Qa4 {[%clk 0:01:53]} 25. b3 {[%clk 0:00:33]}  Rxe1+ {[%clk 0:01:52]} 26. Nxe1 {[%clk 0:00:29]}  Qa5 {[%clk 0:01:42]} 27. Nc2 {[%clk 0:00:29]}  Re8 {[%clk 0:01:39]} 28. b4 {[%clk 0:00:22]}  Qa4 {[%clk 0:01:39]} 29. bxc5 {[%clk 0:00:19]}  Qxc2 {[%clk 0:01:39]} 30. Qd1 {[%clk 0:00:08]}  Qxc4 {[%clk 0:01:35]} 31. cxd6 {[%clk 0:00:07]}  Qc5+ {[%clk 0:01:35]} 32. Kh1 {[%clk 0:00:07]}  Qxd6 {[%clk 0:01:34]} 33. Qd2 {[%clk 0:00:07]}  Re4 {[%clk 0:01:25]} 34. Rf1 {[%clk 0:00:07]}  b5 {[%clk 0:01:25]} 35. f5 {[%clk 0:00:05]}  g5 {[%clk 0:01:25]} 36. h3 {[%clk 0:00:04]}  Qg3 {[%clk 0:01:07]} 37. Qg2 {[%clk 0:00:03]}  Qe5 {[%clk 0:00:51]} 38. d6 {[%clk 0:00:02]}  Rd4 {[%clk 0:00:47]} 39. Qa8+ {[%clk 0:00:02]}  Kh7 {[%clk 0:00:44]} 40. Qf8 {[%clk 0:00:03]}  Qe4+ {[%clk 0:00:32]} 41. Kg1 {[%clk 0:00:03]}  Qe3+ {[%clk 0:00:32]} 42. Rf2 {[%clk 0:00:02]}  Rd1+ {[%clk 0:00:25]} 43. Kg2 {[%clk 0:00:03]}  Qe4+ {[%clk 0:00:25]} 44. Rf3 {[%clk 0:00:03]}  Rd2+ {[%clk 0:00:24]} 45. Kg1 {[%clk 0:00:03]}  Qe1+ {[%clk 0:00:24]} 46. Rf1 {[%clk 0:00:03]}  Qg3+ {[%clk 0:00:24]} 47. Kh1 {[%clk 0:00:04]}  Qg2# {[%clk 0:00:24]} 0-1


[Site "https://www.chess.com"]

[Event "Titled Tuesday Blitz February 15 Early 2022"]
[White "Moroni, Luca Jr"]
[Black "Vlassov, Nikolai"]
[WhiteFideId "865834"]
[BlackFideId "4103360"]
[WhiteElo "2573"]
[BlackElo "2407"]
[Result "1-0"]
[Round "04"]
[TimeControl "180+1"]
[Date "2022.02.15"]
[WhiteClock "0:00:59"]
[BlackClock "0:01:30"]

1. d4 {[%clk 0:03:00]}  Nf6 {[%clk 0:02:59]} 2. c4 {[%clk 0:03:00]}  Nc6 {[%clk 0:02:59]} 3. Nf3 {[%clk 0:02:59]}  e6 {[%clk 0:02:59]} 4. Nc3 {[%clk 0:02:57]}  Bb4 {[%clk 0:02:58]} 5. Bg5 {[%clk 0:02:56]}  h6 {[%clk 0:02:58]} 6. Bxf6 {[%clk 0:02:55]}  Bxc3+ {[%clk 0:02:58]} 7. bxc3 {[%clk 0:02:55]}  Qxf6 {[%clk 0:02:59]} 8. e3 {[%clk 0:02:54]}  O-O {[%clk 0:02:58]} 9. Bd3 {[%clk 0:02:54]}  d6 {[%clk 0:02:58]} 10. Rb1 {[%clk 0:02:46]}  e5 {[%clk 0:02:58]} 11. O-O {[%clk 0:02:39]}  Rb8 {[%clk 0:02:57]} 12. Be4 {[%clk 0:02:38]}  Bd7 {[%clk 0:02:44]} 13. c5 {[%clk 0:02:30]}  Rfd8 {[%clk 0:02:31]} 14. cxd6 {[%clk 0:02:19]}  cxd6 {[%clk 0:02:31]} 15. Qe2 {[%clk 0:02:14]}  Bg4 {[%clk 0:02:26]} 16. h3 {[%clk 0:02:08]}  Bh5 {[%clk 0:02:18]} 17. Qb5 {[%clk 0:01:26]}  a6 {[%clk 0:02:09]} 18. Qc4 {[%clk 0:01:15]}  Ne7 {[%clk 0:01:50]} 19. dxe5 {[%clk 0:01:07]}  dxe5 {[%clk 0:01:48]} 20. Rfd1 {[%clk 0:01:03]}  Rxd1+ {[%clk 0:01:34]} 21. Rxd1 {[%clk 0:01:02]}  b5 {[%clk 0:01:30]} 22. Qc7 {[%clk 0:01:00]}  Rc8 {[%clk 0:01:30]} 23. Rd8+ {[%clk 0:00:59]} 1-0


[Site "https://www.chess.com"]

[Event "Titled Tuesday Blitz February 15 Early 2022"]
[White "Moskalenko, Alexander"]
[Black "Khripachenko, Alexander"]
[WhiteFideId "4155351"]
[BlackFideId "54184975"]
[WhiteElo "2515"]
[BlackElo "2177"]
[Result "1/2-1/2"]
[Round "04"]
[TimeControl "180+1"]
[Date "2022.02.15"]
[WhiteClock "0:00:30"]
[BlackClock "0:00:07"]

1. d4 {[%clk 0:03:00]}  Nf6 {[%clk 0:02:58]} 2. Nc3 {[%clk 0:02:59]}  d5 {[%clk 0:02:58]} 3. Bf4 {[%clk 0:02:59]}  a6 {[%clk 0:02:58]} 4. e3 {[%clk 0:02:58]}  b5 {[%clk 0:02:58]} 5. Nf3 {[%clk 0:02:53]}  Bb7 {[%clk 0:02:58]} 6. Bd3 {[%clk 0:02:49]}  e6 {[%clk 0:02:58]} 7. a4 {[%clk 0:02:32]}  b4 {[%clk 0:02:57]} 8. Ne2 {[%clk 0:02:32]}  c5 {[%clk 0:02:55]} 9. c3 {[%clk 0:02:30]}  Nbd7 {[%clk 0:02:52]} 10. O-O {[%clk 0:02:28]}  c4 {[%clk 0:02:48]} 11. Bb1 {[%clk 0:02:25]}  h6 {[%clk 0:02:42]} 12. a5 {[%clk 0:02:23]}  Be7 {[%clk 0:02:35]} 13. h3 {[%clk 0:02:08]}  O-O {[%clk 0:02:34]} 14. Kh1 {[%clk 0:01:59]}  Re8 {[%clk 0:02:29]} 15. Rg1 {[%clk 0:01:58]}  Ne4 {[%clk 0:02:27]} 16. Qe1 {[%clk 0:01:56]}  bxc3 {[%clk 0:02:26]} 17. bxc3 {[%clk 0:01:56]}  Bc6 {[%clk 0:02:26]} 18. Ne5 {[%clk 0:01:52]}  Nxe5 {[%clk 0:02:24]} 19. Bxe5 {[%clk 0:01:53]}  f6 {[%clk 0:02:15]} 20. Bh2 {[%clk 0:01:50]}  Bd6 {[%clk 0:02:15]} 21. Bxd6 {[%clk 0:01:49]}  Qxd6 {[%clk 0:02:16]} 22. f3 {[%clk 0:01:37]}  Ng5 {[%clk 0:02:13]} 23. Qh4 {[%clk 0:01:37]}  Rab8 {[%clk 0:02:10]} 24. Ra2 {[%clk 0:01:33]}  Rb5 {[%clk 0:01:59]} 25. e4 {[%clk 0:01:33]}  Reb8 {[%clk 0:01:55]} 26. Bc2 {[%clk 0:01:33]}  Rb2 {[%clk 0:01:55]} 27. Rxb2 {[%clk 0:01:33]}  Rxb2 {[%clk 0:01:55]} 28. Rc1 {[%clk 0:01:33]}  dxe4 {[%clk 0:01:53]} 29. fxe4 {[%clk 0:01:33]}  Nxe4 {[%clk 0:01:32]} 30. Bxe4 {[%clk 0:00:48]}  Rxe2 {[%clk 0:01:29]} 31. Bxc6 {[%clk 0:00:48]}  Qxc6 {[%clk 0:01:30]} 32. Qg4 {[%clk 0:00:49]}  Qe4 {[%clk 0:01:11]} 33. Qxe4 {[%clk 0:00:49]}  Rxe4 {[%clk 0:01:11]} 34. Rb1 {[%clk 0:00:50]}  Re3 {[%clk 0:00:16]} 35. Rb6 {[%clk 0:00:49]}  Rxc3 {[%clk 0:00:15]} 36. Rxe6 {[%clk 0:00:49]}  Rd3 {[%clk 0:00:16]} 37. Rxa6 {[%clk 0:00:49]}  Rxd4 {[%clk 0:00:16]} 38. Rc6 {[%clk 0:00:50]}  Rd1+ {[%clk 0:00:16]} 39. Kh2 {[%clk 0:00:50]}  Ra1 {[%clk 0:00:17]} 40. a6 {[%clk 0:00:50]}  c3 {[%clk 0:00:17]} 41. Kg3 {[%clk 0:00:50]}  c2 {[%clk 0:00:17]} 42. Rxc2 {[%clk 0:00:48]}  Rxa6 {[%clk 0:00:17]} 43. Rc3 {[%clk 0:00:49]}  Ra4 {[%clk 0:00:17]} 44. Kf3 {[%clk 0:00:49]}  Kf7 {[%clk 0:00:17]} 45. g3 {[%clk 0:00:46]}  g5 {[%clk 0:00:17]} 46. g4 {[%clk 0:00:45]}  Kg6 {[%clk 0:00:18]} 47. Kg3 {[%clk 0:00:46]}  h5 {[%clk 0:00:18]} 48. Rd3 {[%clk 0:00:45]}  Rf4 {[%clk 0:00:17]} 49. Rd8 {[%clk 0:00:44]}  hxg4 {[%clk 0:00:16]} 50. hxg4 {[%clk 0:00:44]}  Rb4 {[%clk 0:00:17]} 51. Rd3 {[%clk 0:00:44]}  Kf7 {[%clk 0:00:17]} 52. Re3 {[%clk 0:00:44]}  Rb5 {[%clk 0:00:16]} 53. Ra3 {[%clk 0:00:43]}  Ke6 {[%clk 0:00:15]} 54. Ra6+ {[%clk 0:00:43]}  Ke5 {[%clk 0:00:16]} 55. Ra3 {[%clk 0:00:43]}  Rb4 {[%clk 0:00:16]} 56. Rf3 {[%clk 0:00:41]}  Re4 {[%clk 0:00:12]} 57. Rf5+ {[%clk 0:00:41]}  Ke6 {[%clk 0:00:12]} 58. Rf1 {[%clk 0:00:41]}  Re3+ {[%clk 0:00:12]} 59. Kg2 {[%clk 0:00:41]}  Ra3 {[%clk 0:00:12]} 60. Rf5 {[%clk 0:00:40]}  Re3 {[%clk 0:00:11]} 61. Rf2 {[%clk 0:00:37]}  Re5 {[%clk 0:00:07]} 62. Rf1 {[%clk 0:00:37]}  f5 {[%clk 0:00:08]} 63. gxf5+ {[%clk 0:00:37]}  Rxf5 {[%clk 0:00:08]} 64. Ra1 {[%clk 0:00:37]}  Rc5 {[%clk 0:00:08]} 65. Kg3 {[%clk 0:00:37]}  Kf6 {[%clk 0:00:06]} 66. Ra3 {[%clk 0:00:37]}  Kf5 {[%clk 0:00:06]} 67. Rd3 {[%clk 0:00:37]}  Re5 {[%clk 0:00:05]} 68. Rb3 {[%clk 0:00:37]}  Re4 {[%clk 0:00:05]} 69. Rf3+ {[%clk 0:00:36]}  Kg6 {[%clk 0:00:05]} 70. Ra3 {[%clk 0:00:37]}  Kh5 {[%clk 0:00:06]} 71. Rb3 {[%clk 0:00:36]}  Rh4 {[%clk 0:00:06]} 72. Ra3 {[%clk 0:00:35]}  Rg4+ {[%clk 0:00:06]} 73. Kh3 {[%clk 0:00:35]}  Rb4 {[%clk 0:00:07]} 74. Kg3 {[%clk 0:00:34]}  Rc4 {[%clk 0:00:07]} 75. Rb3 {[%clk 0:00:34]}  Rg4+ {[%clk 0:00:06]} 76. Kh3 {[%clk 0:00:33]}  Rd4 {[%clk 0:00:07]} 77. Kg3 {[%clk 0:00:33]}  Kg6 {[%clk 0:00:08]} 78. Rb8 {[%clk 0:00:32]}  Rd3+ {[%clk 0:00:07]} 79. Kg4 {[%clk 0:00:32]}  Rd4+ {[%clk 0:00:08]} 80. Kg3 {[%clk 0:00:33]}  Rf4 {[%clk 0:00:08]} 81. Rc8 {[%clk 0:00:31]}  Rf6 {[%clk 0:00:08]} 82. Kg4 {[%clk 0:00:30]}  Rf4+ {[%clk 0:00:08]} 83. Kg3 {[%clk 0:00:30]}  Rd4 {[%clk 0:00:08]} 84. Ra8 {[%clk 0:00:30]}  Kf5 {[%clk 0:00:06]} 85. Rf8+ {[%clk 0:00:29]}  Kg6 {[%clk 0:00:06]} 86. Ra8 {[%clk 0:00:29]}  Rd3+ {[%clk 0:00:06]} 87. Kg4 {[%clk 0:00:29]}  Rd4+ {[%clk 0:00:07]} 88. Kg3 {[%clk 0:00:30]} 1/2-1/2


[Site "https://www.chess.com"]

[Event "Titled Tuesday Blitz February 15 Early 2022"]
[White "Moskvin, Anatoly"]
[Black "Mischuk, Dmitry"]
[WhiteFideId "24199990"]
[BlackFideId "14118734"]
[WhiteElo "2079"]
[BlackElo "2256"]
[Result "1-0"]
[Round "04"]
[TimeControl "180+1"]
[Date "2022.02.15"]
[WhiteClock "0:00:44"]
[BlackClock "0:00:10"]

1. e4 {[%clk 0:03:00]}  c5 {[%clk 0:02:06]} 2. Nf3 {[%clk 0:03:00]}  Nc6 {[%clk 0:01:59]} 3. Bb5 {[%clk 0:02:58]}  g6 {[%clk 0:01:59]} 4. Bxc6 {[%clk 0:02:51]}  bxc6 {[%clk 0:02:00]} 5. c4 {[%clk 0:02:51]}  Bg7 {[%clk 0:01:59]} 6. Nc3 {[%clk 0:02:52]}  Nf6 {[%clk 0:01:52]} 7. O-O {[%clk 0:02:52]}  O-O {[%clk 0:01:52]} 8. d3 {[%clk 0:02:50]}  d6 {[%clk 0:01:52]} 9. h3 {[%clk 0:02:50]}  Ne8 {[%clk 0:01:48]} 10. Be3 {[%clk 0:02:37]}  Nc7 {[%clk 0:01:48]} 11. Qd2 {[%clk 0:02:32]}  e5 {[%clk 0:01:48]} 12. Bh6 {[%clk 0:02:24]}  f5 {[%clk 0:01:45]} 13. Bxg7 {[%clk 0:02:14]}  Kxg7 {[%clk 0:01:46]} 14. Nh2 {[%clk 0:02:14]}  f4 {[%clk 0:01:39]} 15. f3 {[%clk 0:02:14]}  h5 {[%clk 0:01:29]} 16. Rfb1 {[%clk 0:02:13]}  Rb8 {[%clk 0:01:27]} 17. a3 {[%clk 0:02:08]}  Ne6 {[%clk 0:01:07]} 18. b4 {[%clk 0:02:05]}  cxb4 {[%clk 0:00:46]} 19. axb4 {[%clk 0:02:06]}  Nd4 {[%clk 0:00:46]} 20. Rxa7+ {[%clk 0:02:03]}  Kh6 {[%clk 0:00:44]} 21. Qf2 {[%clk 0:01:45]}  Bb7 {[%clk 0:00:26]} 22. b5 {[%clk 0:01:33]}  Qb6 {[%clk 0:00:22]} 23. Raa1 {[%clk 0:01:28]}  Ra8 {[%clk 0:00:19]} 24. Rxa8 {[%clk 0:01:19]}  Rxa8 {[%clk 0:00:19]} 25. bxc6 {[%clk 0:01:20]}  Qxc6 {[%clk 0:00:19]} 26. Nd5 {[%clk 0:01:04]}  Bc8 {[%clk 0:00:13]} 27. Ng4+ {[%clk 0:00:46]}  Kg5 {[%clk 0:00:10]} 28. h4# {[%clk 0:00:44]} 1-0


[Site "https://www.chess.com"]